fUSD/lending_fUSD_20251120
["ID","MTS","AMOUNT","RATE_DAILY","PERIOD"]
[394517464,1763659848366,-150.99,0.00016262,2]
[394517466,1763659848374,-151.0,0.00016262,2]
[394517468,1763659848383,-151.0,0.00016262,2]
[394517470,1763659848394,-494921.3159549,0.00016262,2]
[394517472,1763659848404,-151.0,0.00016262,2]
[394517474,1763659848413,-151.0,0.00016262,2]
[394517476,1763659848423,-151.0,0.00016262,2]
[394517478,1763659848432,-151.0,0.00016262,2]
[394517480,1763659848442,-151.0,0.00016262,2]
[394517482,1763659848451,-151.0,0.00016262,2]
[394517484,1763659848461,-151.0,0.00016262,2]
[394517486,1763659848470,-19343.8244032,0.00016262,2]
[394517488,1763659848479,-151.0,0.00016262,2]
[394517490,1763659848488,-183.398054,0.00016262,2]
[394517492,1763659848497,-1376.4412693,0.00016262,2]
[394517494,1763659848507,-151.0,0.00016262,2]
[394517496,1763659848516,-151.0,0.00016262,2]
[394517498,1763659848526,-151.0,0.00016262,2]
[394517500,1763659848535,-151.0,0.00016262,2]
[394517502,1763659848546,-1210.8337546,0.00016262,2]
[394517504,1763659848555,-608.37698903,0.00016273,2]
[394517506,1763659848565,-533.0756671,0.00016273,2]
[394517508,1763659848575,-592.99610824,0.00016273,2]
[394517510,1763659848584,-500.0,0.00016273,2]
[394517512,1763659848595,-500.0,0.00016273,2]
[394517513,1763659848604,-500.0,0.00016273,2]
[394517514,1763659848613,-500.0,0.00016273,2]
[394517515,1763659848622,-614.61573852,0.00016273,2]
[394517516,1763659848631,-250.95402588,0.00016273,2]
[394517517,1763659848641,-500.0,0.00016273,2]
[394517518,1763659848650,-500.0,0.0001628,2]
[394517519,1763659848660,-8005.42673044,0.00016353,2]
[394517520,1763659848669,-9074.78185684,0.00016355,2]
[394517521,1763659848678,-304.97338637,0.00016355,2]
[394517523,1763659848687,-491.04613,0.0001636,2]
[394517525,1763659848697,-270.98700213,0.00016373,2]
[394517527,1763659848706,-200.0,0.00016373,2]
[394517529,1763659848716,-200.0,0.00016373,2]
[394517531,1763659848725,-311.08399012,0.000164,2]
[394517533,1763659848734,-941.59,0.00016438,2]
[394517535,1763659848746,-500.0,0.00016438,2]
[394517537,1763659848755,-500.0,0.00016438,2]
[394517539,1763659848765,-500.0,0.00016438,2]
[394517541,1763659848774,-500.0,0.00016438,2]
[394517543,1763659848783,-500.0,0.00016438,2]
[394517545,1763659848792,-500.0,0.00016438,2]
[394517547,1763659848802,-500.0,0.00016438,2]
[394517549,1763659848811,-151.0,0.00016438,2]
[394517551,1763659848821,-200.0,0.00016537,2]
[394517553,1763659848830,-200.0,0.00016537,2]
[394517555,1763659848841,-8005.42673044,0.00016547,2]
[394517557,1763659848851,-9074.78185684,0.00016548,2]
[394517559,1763659848860,-304.97338637,0.00016548,2]
[394517561,1763659848869,-491.04613,0.0001661,2]
[394517563,1763659848879,-150.0,0.0001665,2]
[394517565,1763659848888,-206.31288244,0.00016702,2]
[394517567,1763659848897,-200.0,0.00016702,2]
[394517569,1763659848906,-200.0,0.00016702,2]
[394517571,1763659848916,-2978.88,0.00016704,2]
[394517573,1763659848925,-500.0,0.00016712,2]
[394517575,1763659848934,-500.0,0.00016712,2]
[394517577,1763659848943,-500.0,0.00016712,2]
[394517579,1763659848953,-500.0,0.00016712,2]
[394517581,1763659848965,-500.0,0.00016712,2]
[394517583,1763659848975,-500.0,0.00016712,2]
[394517585,1763659848985,-500.0,0.00016712,2]
[394517587,1763659848995,-500.0,0.00016712,2]
[394517589,1763659849004,-500.0,0.00016712,2]
[394517591,1763659849013,-500.0,0.00016712,2]
[394517593,1763659849022,-431.30991423,0.00016712,2]
[394517595,1763659849032,-500.0,0.00016712,2]
[394517597,1763659849041,-500.0,0.00016712,2]
[394517599,1763659849053,-500.0,0.00016712,2]
[394517601,1763659849062,-500.0,0.00016712,2]
[394517603,1763659849071,-250.0,0.00016712,2]
[394517605,1763659849081,-250.0,0.00016712,2]
[394517607,1763659849090,-250.0,0.00016712,2]
[394517609,1763659849100,-250.0,0.00016712,2]
[394517611,1763659849110,-250.0,0.00016712,2]
[394517613,1763659849119,-250.0,0.00016712,2]
[394517615,1763659849130,-250.0,0.00016712,2]
[394517617,1763659849139,-250.0,0.00016712,2]
[394517619,1763659849148,-250.0,0.00016712,2]
[394517621,1763659849157,-250.0,0.00016712,2]
[394517623,1763659849166,-250.0,0.00016712,2]
[394517625,1763659849175,-500.0,0.00016712,2]
[394517626,1763659849184,-500.0,0.00016712,2]
[394517629,1763659849193,-500.0,0.00016712,2]
[394517631,1763659849202,-941.59,0.00016712,2]
[394517632,1763659849212,-191.12,0.00016712,2]
[394517634,1763659849220,-500.0,0.0001673,2]
[394517636,1763659849229,-500.0,0.00016731,2]
[394517638,1763659849239,-500.0,0.00016731,2]
[394517641,1763659849249,-8005.42673044,0.0001674,2]
[394517642,1763659849258,-9074.78185684,0.00016741,2]
[394517644,1763659849266,-2464.0,0.0001675,2]
[394517646,1763659849276,-150.0,0.000168,2]
[394517648,1763659849286,-150.0,0.000168,2]
[394517650,1763659849295,-500.0,0.00016821,2]
[394517652,1763659849304,-1000.0,0.00016821,2]
[394517654,1763659849313,-1000.0,0.00016821,2]
[394517657,1763659849324,-500.0,0.00016821,2]
[394517659,1763659849333,-491.04613,0.0001686,2]
[394517661,1763659849344,-200.0,0.00016869,2]
[394517663,1763659849353,-200.0,0.00016869,2]
[394517665,1763659849363,-11973.40443851,0.000169,2]
[394517666,1763659849372,-8005.42673044,0.00016933,2]
[394517668,1763659849382,-9074.78185684,0.00016934,2]
[394517670,1763659849392,-2464.0,0.00016935,2]
[394517672,1763659849401,-215.66795004,0.00016955,2]
[394517674,1763659849410,-166.66,0.00016968,2]
[394517676,1763659849420,-385.96078134,0.00016973,2]
[394517678,1763659849429,-167.00495007,0.00016973,2]
[394517680,1763659849439,-173.02004113,0.00016973,2]
[394517682,1763659849449,-500.0,0.00016973,2]
[394517684,1763659849459,-500.0,0.00016973,2]
[394517686,1763659849469,-500.0,0.00016973,2]
[394517688,1763659849479,-500.0,0.00016973,2]
[394517690,1763659849488,-331.6241619,0.00016973,2]
[394517692,1763659849497,-500.0,0.00016973,2]
[394517694,1763659849507,-500.0,0.00016973,2]
[394517696,1763659849516,-546.49659787,0.00016973,2]
[394517698,1763659849525,-500.0,0.00016973,2]
[394517700,1763659849535,-500.0,0.00016973,2]
[394517702,1763659849545,-500.0,0.00016973,2]
[394517704,1763659849555,-500.0,0.00016973,2]
[394517706,1763659849564,-500.0,0.00016973,2]
[394517708,1763659849574,-501.60703041,0.00016973,2]
[394517710,1763659849583,-500.0,0.00016973,2]
[394517712,1763659849594,-500.0,0.00016973,2]
[394517714,1763659849604,-500.0,0.00016973,2]
[394517716,1763659849613,-500.0,0.00016973,2]
[394517718,1763659849622,-578.8185705,0.00016973,2]
[394517720,1763659849632,-501.93625082,0.00016973,2]
[394517722,1763659849642,-500.0,0.00016973,2]
[394517724,1763659849651,-500.0,0.00016973,2]
[394517726,1763659849660,-500.0,0.00016973,2]
[394517728,1763659849669,-491.44400652,0.00016973,2]
[394517730,1763659849680,-500.0,0.00016973,2]
[394517732,1763659849689,-500.0,0.00016973,2]
[394517734,1763659849698,-500.96694161,0.00016973,2]
[394517736,1763659849707,-500.0,0.00016973,2]
[394517738,1763659849717,-500.0,0.00016973,2]
[394517740,1763659849726,-500.0,0.00016973,2]
[394517741,1763659849735,-500.0,0.00016973,2]
[394517743,1763659849744,-941.59,0.00016986,2]
[394517744,1763659849754,-250.0,0.00017,2]
[394517745,1763659849901,-2000.0,0.00017,2]
[394517746,1763659849912,-125773.91398734,0.00017,2]
[394517747,1763659849921,-160.0,0.00017,2]
[394517748,1763659849931,-167.37962358,0.0001703,2]
[394517749,1763659849941,-200.0,0.00017038,2]
[394517750,1763659849951,-200.0,0.00017038,2]
[394517751,1763659849960,-579.88,0.00017051,2]
[394517752,1763659849970,-301.34471525,0.00017081,2]
[394517753,1763659849979,-150.0,0.000171,2]
[394517754,1763659849988,-150.0,0.000171,2]
[394517755,1763659849998,-150.0,0.000171,2]
[394517757,1763659850008,-10712.0,0.000171,2]
[394517758,1763659850017,-491.04613,0.0001711,2]
[394517760,1763659850026,-168.0,0.00017117,2]
[394517762,1763659850036,-9074.78185684,0.00017128,2]
[394517764,1763659850049,-168.27075552,0.00017203,2]
[394517765,1763659850059,-941.59,0.0001726,2]
[394517766,1763659850069,-250.0,0.00017285,2]
[394517767,1763659850079,-9074.78185684,0.00017321,2]
[394517768,1763659850088,-491.04613,0.0001736,2]
[394517769,1763659850099,-345.86721143,0.00017368,2]
[394517770,1763659850108,-1500.0,0.00017368,2]
[394517771,1763659850118,-150.0,0.000174,2]
[394517772,1763659850128,-150.0,0.000174,2]
[394517773,1763659850138,-151.0,0.00017415,2]
[394517774,1763659850147,-1246.0,0.00017415,2]
[394517775,1763659850158,-151.0,0.00017415,2]
[394517776,1763659850168,-151.0,0.00017415,2]
[394517777,1763659850177,-1246.0,0.00017415,2]
[394517779,1763659850187,-829.0,0.00017415,2]
[394517781,1763659850196,-151.0,0.00017415,2]
[394517783,1763659850206,-1246.0,0.00017415,2]
[394517786,1763659850215,-847.10927607,0.00017415,2]
[394517789,1763659850225,-189.16031566,0.00017415,2]
[394517792,1763659850234,-1246.0,0.00017415,2]
[394517795,1763659850243,-1246.0,0.00017415,2]
[394517799,1763659850253,-153.0,0.00017415,2]
[394517801,1763659850264,-153.0,0.00017415,2]
[394517803,1763659850275,-153.0,0.00017415,2]
[394517804,1763659850284,-155.14782978,0.00017415,2]
[394517807,1763659850295,-153.0,0.00017415,2]
[394517809,1763659850304,-152.0,0.00017415,2]
[394517811,1763659850314,-152.0,0.00017415,2]
[394517812,1763659850323,-152.0,0.00017415,2]
[394517814,1763659850332,-152.0,0.00017415,2]
[394517816,1763659850344,-152.0,0.00017415,2]
[394517818,1763659850354,-152.0,0.00017415,2]
[394517820,1763659850364,-152.0,0.00017415,2]
[394517822,1763659850374,-152.0,0.00017415,2]
[394517824,1763659850384,-152.0,0.00017415,2]
[394517826,1763659850393,-152.0,0.00017415,2]
[394517827,1763659850402,-152.0,0.00017415,2]
[394517828,1763659850411,-152.0,0.00017415,2]
[394517830,1763659850420,-152.0,0.00017415,2]
[394517831,1763659850429,-152.0,0.00017415,2]
[394517833,1763659850439,-152.0,0.00017415,2]
[394517834,1763659850448,-152.0,0.00017415,2]
[394517835,1763659850457,-152.0,0.00017415,2]
[394517836,1763659850467,-152.0,0.00017415,2]
[394517837,1763659850476,-152.0,0.00017415,2]
[394517838,1763659850485,-152.0,0.00017415,2]
[394517839,1763659850495,-152.0,0.00017415,2]
[394517840,1763659850504,-152.0,0.00017415,2]
[394517841,1763659850514,-152.0,0.00017415,2]
[394517842,1763659850523,-152.0,0.00017415,2]
[394517843,1763659850532,-152.0,0.00017415,2]
[394517844,1763659850541,-152.0,0.00017415,2]
[394517845,1763659850551,-152.0,0.00017415,2]
[394517846,1763659850560,-199.24581473,0.00017415,2]
[394517847,1763659850569,-9074.78185684,0.00017514,2]
[394517848,1763659850579,-500.0,0.00017521,2]
[394517849,1763659850611,-335.09506367,0.00017521,2]
[394517850,1763659850620,-1000.0,0.00017521,2]
[394517851,1763659850629,-500.0,0.00017521,2]
[394517852,1763659850638,-1000.0,0.00017521,2]
[394517853,1763659850648,-465.67133023,0.00017521,2]
[394517854,1763659850657,-874.8674498,0.00017521,2]
[394517855,1763659850667,-745.44865078,0.00017521,2]
[394517856,1763659850676,-1000.0,0.00017521,2]
[394517857,1763659850685,-502.92078827,0.00017521,2]
[394517858,1763659850695,-1000.0,0.00017521,2]
[394517859,1763659850705,-1001.76436207,0.00017521,2]
[394517860,1763659850714,-1000.0,0.00017521,2]
[394517861,1763659850723,-500.0,0.00017521,2]
[394517862,1763659850732,-1000.0,0.00017521,2]
[394517863,1763659850741,-501.8690547,0.00017521,2]
[394517864,1763659850750,-501.34785536,0.00017521,2]
[394517865,1763659850759,-168.88708956,0.00017521,2]
[394517866,1763659850768,-518.75704326,0.00017521,2]
[394517867,1763659850777,-715.0,0.00017523,2]
[394517868,1763659850786,-715.0,0.00017527,2]
[394517869,1763659850795,-941.59,0.00017534,2]
[394517870,1763659850804,-300.0,0.00017545,2]
[394517871,1763659850814,-150.0,0.0001755,2]
[394517872,1763659850823,-168.27075552,0.00017552,2]
[394517873,1763659850832,-715.0,0.00017561,2]
[394517874,1763659850841,-715.0,0.00017583,2]
[394517875,1763659850852,-491.04613,0.0001761,2]
[394517876,1763659850861,-156.36,0.00017613,2]
[394517877,1763659850870,-166.66,0.00017669,2]
[394517878,1763659850879,-715.0,0.00017682,2]
[394517879,1763659850889,-9074.78185684,0.00017707,2]
[394517880,1763659850898,-420.0,0.00017707,2]
[394517881,1763659850908,-1680.0,0.00017796,2]
[394517882,1763659850917,-715.0,0.00017807,2]
[394517883,1763659850926,-941.59,0.00017808,2]
[394517884,1763659850935,-2500.0,0.00017819,2]
[394517885,1763659850944,-300.0,0.00017819,2]
[394517886,1763659850954,-300.0,0.00017819,2]
[394517887,1763659850963,-250.0,0.00017819,2]
[394517888,1763659850972,-340.47068492,0.00017819,2]
[394517889,1763659850981,-300.0,0.00017819,2]
[394517890,1763659850990,-300.0,0.00017819,2]
[394517891,1763659850999,-300.0,0.0001782,2]
[394517892,1763659851009,-200.0,0.0001782,2]
[394517893,1763659851018,-2000.0,0.00017862,2]
[394517894,1763659851027,-2000.0,0.00017862,2]
[394517895,1763659851037,-2000.0,0.00017862,2]
[394517896,1763659851051,-947.415,0.00017862,2]
[394517897,1763659851059,-536.54,0.00017868,2]
[394517898,1763659851070,-250.0,0.00017869,2]
[394517899,1763659851079,-25000.0,0.00017891,3]
[394517900,1763659851089,-500.0,0.00017899,2]
[394517901,1763659851103,-328.28342488,0.000179,2]
[394517902,1763659851113,-151.0,0.000179,2]
[394517903,1763659851123,-151.0,0.000179,2]
[394517904,1763659851133,-151.0,0.000179,2]
[394517905,1763659851144,-168.27075552,0.000179,2]
[394517906,1763659851154,-1979.7769,0.000179,2]
[394517907,1763659851163,-167.37962358,0.000179,2]
[394517908,1763659851174,-2369.99064429,0.000179,3]
[394517909,1763659851183,-250.29047238,0.000179,2]
[394517910,1763659851193,-846.37428713,0.000179,2]
[394517911,1763659851202,-9074.78185684,0.000179,2]
[394517912,1763659851211,-425.54775577,0.000179,2]
[394517913,1763659851220,-25000.0,0.000179,3]
[394517914,1763659851229,-8377.08896784,0.000179,2]
[394517915,1763659851238,-1000.0,0.000179,2]
[394517916,1763659851247,-715.0,0.00017905,2]
[394517917,1763659851257,-465.0,0.00017925,2]
[394517918,1763659851266,-715.0,0.0001795,2]
[394517919,1763659851276,-500.0,0.00017973,2]
[394517920,1763659851285,-500.0,0.00017973,2]
[394517921,1763659851295,-500.0,0.00017973,2]
[394517922,1763659851304,-500.0,0.00017973,2]
[394517923,1763659851314,-500.0,0.00017973,2]
[394517924,1763659851324,-553.38306363,0.00017973,2]
[394517925,1763659851334,-161.27314199,0.00017973,2]
[394517926,1763659851347,-500.0,0.00017973,2]
[394517927,1763659851356,-500.0,0.00017973,2]
[394517928,1763659851365,-500.0,0.00017973,2]
[394517929,1763659851376,-500.0,0.00017973,2]
[394517930,1763659851386,-500.0,0.00017973,2]
[394517931,1763659851396,-162.58064399,0.00017973,2]
[394517932,1763659851406,-206.31288244,0.0001799,2]
[394517933,1763659851416,-206.31288244,0.0001799,2]
[394517934,1763659851426,-1000.0,0.00017999,2]
[394517935,1763659851437,-881.64203467,0.00017999,5]
[394517936,1763659851447,-1031.64203467,0.00017999,5]
[394517937,1763659851456,-300.0,0.00017999,2]
[394517938,1763659851466,-529.1,0.00017999,2]
[394517939,1763659851476,-300.0,0.00017999,2]
[394517940,1763659851486,-300.0,0.00017999,2]
[394517941,1763659851495,-151.0,0.00017999,2]
[394517943,1763659851504,-151.0,0.00017999,2]
[394517944,1763659851514,-300.0,0.00017999,2]
[394517945,1763659851523,-300.0,0.00017999,2]
[394517946,1763659851532,-300.0,0.00017999,2]
[394517947,1763659851542,-536.54,0.00017999,2]
[394517948,1763659851551,-536.54,0.00017999,2]
[394517949,1763659851560,-536.54,0.00017999,2]
[394517950,1763659851569,-536.54,0.00017999,2]
[394517951,1763659851579,-536.54,0.00017999,2]
[394517952,1763659851589,-536.54,0.00017999,2]
[394517953,1763659851603,-536.54,0.00017999,2]
[394517954,1763659851612,-536.54,0.00017999,2]
[394517955,1763659851622,-536.54,0.00017999,2]
[394517956,1763659851634,-536.54,0.00017999,2]
[394517957,1763659851643,-536.54,0.00017999,2]
[394517958,1763659851653,-536.54,0.00017999,2]
[394517959,1763659851662,-536.54,0.00017999,2]
[394517960,1763659851672,-536.54,0.00017999,2]
[394517961,1763659851682,-500.0,0.00017999,2]
[394517962,1763659851691,-536.54,0.00017999,2]
[394517963,1763659851702,-536.54,0.00017999,2]
[394517964,1763659851711,-458.98,0.00017999,2]
[394517965,1763659851720,-536.54,0.00017999,2]
[394517966,1763659851730,-536.54,0.00017999,2]
[394517967,1763659851739,-536.67388554,0.00017999,2]
[394517968,1763659851749,-150.0,0.00018,2]
[394517969,1763659851759,-295.15855584,0.00018,2]
[394517970,1763659851768,-150.00000001,0.00018,2]
[394517971,1763659851779,-238.95743324,0.00018,2]
[394517972,1763659851788,-150.0,0.00018,2]
[394517973,1763659851798,-150.0,0.00018,2]
[394517974,1763659851807,-150.0,0.00018,2]
[394517975,1763659851816,-150.0,0.00018,2]
[394517976,1763659851826,-150.0,0.00018,2]
[394517977,1763659851835,-150.0,0.00018,2]
[394517979,1763659851846,-179.31223623,0.00018,2]
[394517980,1763659851855,-150.0,0.00018,2]
[394517981,1763659851865,-191680.79948252,0.00018,2]
[394517983,1763659851880,-882.62961443,0.00018,2]
[394517984,1763659851891,-1735.36788241,0.00018,2]
[394517985,1763659851906,-6224.83730109,0.00018,2]
[394517986,1763659851917,-1833.773,0.00018,2]
[394517987,1763659851928,-521.11876182,0.00018,2]
[394517988,1763659851939,-870.0,0.00018,2]
[394517991,1763659852440,1411.91349999,0.00016147,2]
[394518022,1763659861019,760000.0,0.00016147,2]
[394518049,1763659875671,1000.0,0.00016147,2]
[394518080,1763659887054,2005.5633894,0.00015999,2]
[394518102,1763659893860,1372.4,0.00016147,2]
[394518205,1763659931665,346.66485979,0.00016159,2]
[394518345,1763660028299,457099.86065762,0.0001616,2]
[394518346,1763660028332,146048.90944238,0.0001616,2]
[394518347,1763660044519,1000.0,0.00016162,2]
[394518349,1763660063156,1173.9418,0.00016162,2]
[394518486,1763660238558,150.0,0.00016171,2]
[394518521,1763660342689,610.0,0.00015959,2]
[394518522,1763660421433,166.66,0.00015134,2]
[394518523,1763660421665,166.66,0.00015453,2]
[394518524,1763660421919,166.66,0.00015771,2]
[394518525,1763660422144,166.66,0.0001609,2]
[394518531,1763660467452,176.73782147,0.0001615,2]
[394518534,1763660546814,5967.99,0.00015877,2]
[394518535,1763660570747,3188.64217853,0.00016173,2]
[394518536,1763660570771,6811.35782147,0.00016173,2]
[394518537,1763660586883,3188.65217853,0.00016173,2]
[394518538,1763660586910,6811.34782147,0.00016173,2]
[394518542,1763660609282,3188.66217853,0.00016173,2]
[394518543,1763660609311,1092.45782147,0.00016173,2]
[394518545,1763660673367,351.63585083,0.00016159,2]
[394518546,1763660677717,1470.0,0.00016127,2]
[394518573,1763660724788,150.0,0.00015774,2]
[394518574,1763660725068,150.0,0.00015774,120]
[394518576,1763660749817,225.26928822,0.000161,2]
[394518634,1763660903314,399.21,0.00015745,2]
[394518649,1763660953593,1019.85,0.00015707,2]
[394518701,1763661006111,250.0,0.00015733,2]
[394518713,1763661022634,-250.0,0.00016198,2]
[394518714,1763661022656,-154.84144416,0.000162,2]
[394518715,1763661022678,-150.0,0.000162,2]
[394518716,1763661022700,-150.0,0.000162,2]
[394518717,1763661022723,-150.0,0.000162,2]
[394518718,1763661022747,-150.0,0.000162,2]
[394518719,1763661022768,-151.70766562,0.000162,2]
[394518720,1763661022793,-150.0,0.000162,2]
[394518721,1763661022814,-250.0,0.00016225,2]
[394518722,1763661022836,-1200.0,0.00016256,2]
[394518723,1763661022857,-300.0,0.00016257,2]
[394518724,1763661022879,-500.0,0.00016259,2]
[394518725,1763661022902,-530.31019318,0.00016261,2]
[394518726,1763661022924,-1175.70315306,0.00016338,2]
[394518727,1763661022946,-166.66,0.00016408,2]
[394518728,1763661022967,-550.0,0.00016437,2]
[394518729,1763661022987,-4604.34,0.00016438,2]
[394518730,1763661023008,-150.99,0.00016438,2]
[394518731,1763661023028,-9999.99,0.00016438,2]
[394518732,1763661023054,-2229.7,0.00016438,2]
[394518733,1763661023076,-299.99,0.00016438,4]
[394518734,1763661023099,-9999.99,0.00016438,2]
[394518735,1763661023123,-9999.99,0.00016438,2]
[394518736,1763661023303,-1475.15754398,0.00016438,2]
[394518752,1763661031716,-1577.43265701,0.00016438,2]
[394518754,1763661031770,-1883.74985305,0.00016438,2]
[394518755,1763661031782,-407.24671407,0.00016438,2]
[394518756,1763661031795,-599.18914218,0.00016438,2]
[394518757,1763661031807,-2236.96238272,0.00016438,2]
[394518758,1763661031879,-1139.34274386,0.00016438,2]
[394518759,1763661031890,-531.67165279,0.00016438,2]
[394518760,1763661031933,-776.15703811,0.00016438,2]
[394518761,1763661031945,-6875.28027223,0.00016438,2]
[394518762,1763661031955,-22919.48,0.00016438,2]
[394518763,1763661031964,-500.0,0.00016473,2]
[394518764,1763661031974,-500.0,0.00016473,2]
[394518765,1763661031983,-362.55630464,0.00016473,2]
[394518767,1763661031993,-500.0,0.00016473,2]
[394518768,1763661032002,-197.92943957,0.00016473,2]
[394518770,1763661032011,-278.71168982,0.00016473,2]
[394518771,1763661032020,-500.0,0.00016473,2]
[394518772,1763661032030,-5613.2,0.00016584,2]
[394518773,1763661032040,-465.0,0.00016593,2]
[394518775,1763661032054,-175.0,0.000166,2]
[394518776,1763661032063,-1175.70315305,0.00016634,2]
[394518777,1763661032073,-5569.96642968,0.00016673,2]
[394518778,1763661032082,-500.0,0.00016724,2]
[394518779,1763661032091,-446.55630019,0.00016724,2]
[394518781,1763661032104,-250.0,0.00016724,2]
[394518783,1763661032115,-250.0,0.00016724,2]
[394518785,1763661032125,-250.0,0.00016724,2]
[394518787,1763661032134,-250.0,0.00016724,2]
[394518789,1763661032145,-250.0,0.00016724,2]
[394518791,1763661032155,-325.86482066,0.00016724,2]
[394518793,1763661032165,-166.66,0.00016727,2]
[394518794,1763661032175,-500.0,0.0001673,2]
[394518795,1763661032184,-294.73959081,0.0001673,2]
[394518797,1763661032193,-500.0,0.0001673,2]
[394518798,1763661032203,-500.0,0.0001673,2]
[394518799,1763661032212,-593.9239087,0.0001673,2]
[394518800,1763661032222,-256.35887229,0.0001673,2]
[394518801,1763661032231,-500.0,0.0001673,2]
[394518802,1763661032240,-500.0,0.00016731,2]
[394518803,1763661032250,-525.84992246,0.00016731,2]
[394518804,1763661032259,-1000.0,0.00016733,2]
[394518805,1763661032268,-64239.48247647,0.00016734,2]
[394518806,1763661032282,-33239.29898822,0.00016734,2]
[394518807,1763661032292,-500.0,0.00016773,2]
[394518808,1763661032307,-422.52168536,0.00016773,2]
[394518809,1763661032316,-504.57461567,0.00016773,2]
[394518810,1763661032326,-500.0,0.00016773,2]
[394518811,1763661032336,-509.90200273,0.00016773,2]
[394518812,1763661032345,-529.06851033,0.00016773,2]
[394518813,1763661032354,-501.0162978,0.00016773,2]
[394518814,1763661032363,-500.0,0.00016773,2]
[394518815,1763661032374,-508.46428108,0.00016773,2]
[394518816,1763661032383,-500.0,0.00016773,2]
[394518817,1763661032394,-500.0,0.00016773,2]
[394518818,1763661032404,-500.0,0.00016773,2]
[394518819,1763661032414,-443.44977622,0.00016773,2]
[394518820,1763661032427,-150.0,0.00016773,2]
[394518821,1763661032437,-485.54879562,0.00016773,2]
[394518822,1763661032447,-504.69,0.00016773,2]
[394518823,1763661032457,-5569.96642962,0.00016809,2]
[394518824,1763661032467,-465.0,0.00016871,2]
[394518825,1763661032476,-888.36830372,0.00016946,2]
[394518826,1763661032489,-4681.5981259,0.00016946,2]
[394518827,1763661032505,-263.33,0.00016956,3]
[394518828,1763661032515,-790.0,0.00016956,3]
[394518829,1763661032524,-500.0,0.00016973,2]
[394518830,1763661032534,-500.0,0.00016973,2]
[394518831,1763661032543,-500.0,0.00016973,2]
[394518832,1763661032556,-500.0,0.00016973,2]
[394518833,1763661032565,-500.0,0.00016973,2]
[394518834,1763661032575,-464.88935143,0.00016973,2]
[394518835,1763661032584,-500.0,0.00016973,2]
[394518836,1763661032593,-500.0,0.00016973,2]
[394518837,1763661032602,-500.0,0.00016973,2]
[394518838,1763661032611,-178.99807806,0.00016973,2]
[394518839,1763661032621,-465.0,0.00016986,2]
[394518840,1763661032631,-465.0,0.00016991,2]
[394518841,1763661032640,-255.0,0.00016999,2]
[394518842,1763661032650,-2000.0,0.00017,2]
[394518843,1763661032660,-250.0,0.00017,2]
[394518844,1763661032670,-900.47863262,0.00017021,2]
[394518845,1763661032679,-265.6603662,0.00017041,2]
[394518846,1763661032689,-504.69,0.00017047,2]
[394518847,1763661032702,-495.1,0.00017048,2]
[394518848,1763661032712,-465.0,0.0001705,2]
[394518849,1763661032722,-5569.96642962,0.00017082,2]
[394518850,1763661032901,-150.0,0.000171,2]
[394518851,1763661032911,-200.0,0.000171,6]
[394518852,1763661032920,-300.0,0.000171,2]